bitfinex-derivatives/quotes_ETHF0:USTF0_20241026
["timestamp","ask_amount","ask_price","bid_price","bid_amount"]
[1729958268049,0.42782977,2457.0,2456.9,0.82142]
[1729958268547,0.42782977,2457.0,2456.9,0.4139]
[1729958269349,0.42782977,2457.0,2456.9,0.82142]
[1729958270753,0.42782977,2457.0,2456.9,0.4139]
[1729958270947,0.42782977,2457.0,2456.9,0.82142]
[1729958275849,0.42782977,2457.0,2456.9,1.24302]
[1729958280055,0.42782977,2457.0,2456.9,0.8355]
[1729958280561,0.42782977,2457.0,2456.9,1.24302]
[1729958283967,0.42782977,2457.0,2456.9,0.8355]
[1729958284369,0.42782977,2457.0,2456.9,1.24302]
[1729958285472,0.42782977,2457.0,2456.9,0.8355]
[1729958285973,4.49822977,2457.0,2456.9,0.8355]
[1729958286171,0.40752,2456.9,2456.8,0.4429]
[1729958286571,0.42784977,2456.9,2456.8,0.4429]
[1729958286771,0.42784977,2456.9,2456.8,1.2928]
[1729958287676,0.42784977,2456.9,2456.8,1.70034]
[1729958287975,0.42784977,2456.9,2456.8,1.2928]
[1729958288274,0.42784977,2456.9,2456.8,1.70034]
[1729958288668,0.42784977,2456.9,2456.8,1.2928]
[1729958289567,0.42784977,2456.9,2456.8,1.70034]
[1729958290071,0.42784977,2456.9,2456.8,1.2928]
[1729958291181,0.42784977,2456.9,2456.8,1.70034]
[1729958292578,0.42784977,2456.9,2456.8,5.77074]
[1729958293278,0.42784977,2456.9,2456.8,1.70034]
[1729958296782,0.42784977,2456.9,2456.8,1.2928]
[1729958297879,0.42784977,2456.9,2456.8,1.70034]
[1729958300883,0.42784977,2456.9,2456.8,1.2928]
[1729958301082,0.42784977,2456.9,2456.8,1.70034]
[1729958306586,0.02032977,2456.9,2456.8,1.70034]
[1729958306782,0.02032977,2456.9,2456.8,5.77074]
[1729958306982,0.42784977,2456.9,2456.8,5.77074]
[1729958307185,0.42784977,2456.9,2456.8,1.70034]
[1729958307688,0.02032977,2456.9,2456.8,1.70034]
[1729958308287,0.42784977,2456.9,2456.8,1.70034]
[1729958309894,0.02032977,2456.9,2456.8,1.70034]
[1729958310583,0.42784977,2456.9,2456.8,1.70034]
[1729958310783,0.02032977,2456.9,2456.8,1.70034]
[1729958310983,0.02032977,2456.9,2456.8,5.77074]
[1729958311286,0.40748,2457.2,2457.1,0.40747]
[1729958311692,0.40751,2457.1,2457.0,0.4075]
[1729958314992,1.03911,2457.4,2456.8,1.2928]
[1729958315190,0.40752,2457.0,2456.9,0.40751]
[1729958315384,1.01865,2457.3,2456.8,1.2928]
[1729958315591,0.40752,2456.9,2456.8,1.70033]
[1729958315793,0.40752,2456.9,2456.8,1.2928]
[1729958317496,0.40752,2457.0,2456.9,0.40751]
[1729958317894,3.2078,2457.3,2456.8,1.2928]
[1729958318095,0.40748,2457.2,2457.1,0.40748]
[1729958318791,0.4075,2457.1,2457.0,0.4075]
[1729958321398,3.2283,2457.6,2456.8,0.8499]
[1729958321598,0.40749,2457.2,2457.1,0.40748]
[1729958322509,0.4075,2457.1,2457.0,0.4075]
[1729958324204,1.01861,2457.4,2456.8,0.8499]
[1729958324497,0.40751,2457.0,2456.8,0.8499]
[1729958324700,0.40751,2457.0,2456.9,0.40752]
[1729958325796,0.0693,2457.4,2456.8,0.8499]
[1729958326096,0.40748,2457.2,2457.1,0.40748]
[1729958326294,0.40746,2457.3,2457.2,0.84946]
[1729958328305,0.40746,2457.3,2457.2,0.442]
[1729958328803,0.40746,2457.3,2457.2,0.8863]
[1729958330500,0.40746,2457.3,2457.2,1.29377]
[1729958330807,0.40746,2457.3,2457.2,0.8863]
[1729958333807,0.40746,2457.3,2457.2,1.29377]
[1729958334611,0.40746,2457.3,2457.2,0.8863]
[1729958334812,0.40746,2457.3,2457.2,1.29377]
[1729958338618,0.40746,2457.3,2457.2,0.8863]
[1729958338817,0.40746,2457.3,2457.2,1.29377]
[1729958339118,0.40746,2457.3,2457.2,0.8863]
[1729958339815,0.40746,2457.3,2457.2,1.3215]
[1729958340215,0.40746,2457.3,2457.2,1.72897]
[1729958342005,4.0948,2457.7,2457.2,5.3911]
[1729958342211,0.40743,2457.5,2457.4,0.40743]
[1729958342820,0.40744,2457.4,2457.3,0.40744]
[1729958343615,0.40745,2457.3,2457.2,1.72895]
[1729958343815,0.40745,2457.4,2457.3,0.40745]
[1729958344419,0.40745,2457.3,2457.2,1.3215]
[1729958345718,0.40745,2457.3,2457.2,1.72897]
[1729958348818,0.40745,2457.3,2457.2,1.3215]
[1729958350121,0.40745,2457.3,2457.2,1.72897]
[1729958352522,1.01852,2457.6,2457.2,1.3215]
[1729958352720,0.40745,2457.4,2457.3,0.40744]
[1729958354122,0.886,2457.6,2457.2,1.3215]
[1729958354322,0.40745,2457.3,2457.2,1.72896]
[1729958358528,0.40745,2457.3,2457.2,1.3215]
[1729958358830,0.40745,2457.3,2457.2,1.72897]
[1729958359733,1.90453,2457.6,2457.2,1.3215]
[1729958359934,0.40745,2457.4,2457.3,0.40744]
[1729958361834,0.40745,2457.3,2457.2,1.72896]
[1729958364638,4.0938,2457.7,2457.2,1.3215]
[1729958364839,0.40743,2457.5,2457.4,0.40742]
[1729958365032,3.2078,2457.7,2457.3,6.10688]
[1729958365227,1.01809,2458.7,2458.2,0.4073]
[1729958365427,0.40727,2458.4,2458.3,0.8487]
[1729958365633,0.40727,2458.4,2458.3,0.4362]
[1729958365832,0.40732,2458.1,2458.0,0.4125]
[1729958366539,0.40732,2458.2,2458.0,0.81984]
[1729958366739,0.40732,2458.2,2458.1,0.4333]
[1729958367229,4.068,2458.2,2457.8,3.2078]
[1729958367432,0.40731,2458.2,2458.1,0.40732]
[1729958367837,4.47531,2458.2,2458.1,0.40732]
[1729958368437,0.40731,2458.2,2458.1,0.40732]
[1729958368837,0.886,2458.5,2457.9,0.4212]
[1729958369039,0.40732,2458.2,2458.0,0.83643]
[1729958369240,0.40732,2458.2,2458.1,0.4374]
[1729958372145,0.40732,2458.2,2458.1,0.84472]
[1729958372345,0.40732,2458.2,2458.1,0.4374]
[1729958372546,0.40732,2458.2,2458.1,0.84472]
[1729958373449,0.40732,2458.2,2458.1,0.4374]
[1729958373841,0.40732,2458.2,2458.1,0.84472]
[1729958377750,0.4073,2458.3,2458.2,0.4073]
[1729958380551,0.40731,2458.2,2458.1,3.6452]
[1729958381147,0.40731,2458.2,2458.1,4.05252]
[1729958381850,0.4073,2458.3,2458.2,0.4073]
[1729958383450,0.40731,2458.2,2458.1,4.05252]
[1729958383647,0.40731,2458.2,2458.1,3.6452]
[1729958383953,0.40732,2458.1,2458.0,0.4291]
[1729958384148,0.40732,2458.1,2458.0,0.8433]
[1729958384748,0.40732,2458.1,2458.0,1.25064]
[1729958384955,0.40732,2458.1,2458.0,0.8433]
[1729958387350,0.40732,2458.1,2458.0,1.25064]
[1729958387555,0.40732,2458.1,2458.0,0.8433]
[1729958389659,0.40732,2458.1,2458.0,1.25064]
[1729958390359,0.40731,2458.3,2458.2,0.40729]
[1729958390657,0.40726,2458.5,2458.2,0.40731]
[1729958390958,0.40726,2458.5,2458.1,1.01831]
[1729958390959,0.40725,2458.6,2458.5,0.40725]
[1729958391256,0.40725,2458.6,2458.5,1.24725]
[1729958392958,0.885,2458.9,2458.5,0.84]
[1729958393154,0.40723,2458.7,2458.6,0.40722]
[1729958393761,0.885,2458.9,2458.5,0.84]
[1729958394059,0.40722,2458.8,2458.7,0.40722]
[1729958394258,0.40723,2458.7,2458.6,0.40723]
[1729958395157,0.40721,2458.8,2458.7,0.40721]
[1729958397862,0.40723,2458.7,2458.6,0.40723]
[1729958398052,0.40724,2458.6,2458.5,4.45504]
[1729958398458,0.40724,2458.7,2458.6,0.40723]
[1729958398960,1.90292,2459.1,2458.5,4.0478]
[1729958399163,0.40724,2458.6,2458.5,4.45505]
[1729958400057,0.40724,2458.6,2458.5,1.24725]
[1729958400260,0.40724,2458.6,2458.5,4.45505]
[1729958400463,0.40724,2458.6,2458.5,1.24725]
[1729958400658,1.01798,2458.9,2458.5,4.0478]
[1729958400963,0.40723,2458.7,2458.6,0.40723]
[1729958404055,0.40724,2458.6,2458.5,4.0478]
[1729958404257,0.40724,2458.6,2458.5,1.24726]
[1729958404457,0.40723,2458.7,2458.6,0.40723]
[1729958404657,0.40722,2458.8,2458.7,0.40721]
[1729958404864,0.40722,2458.8,2458.7,3.61501]
[1729958405060,0.40722,2458.8,2458.7,3.2078]
[1729958405462,0.40724,2458.6,2458.5,1.24725]
[1729958405658,0.40724,2458.6,2458.5,0.84]
[1729958405862,0.40724,2458.6,2458.5,0.4196]
[1729958407871,0.884,2458.7,2458.3,0.4531]
[1729958408071,0.40727,2458.4,2458.3,0.4531]
[1729958410063,1.01811,2458.6,2458.2,0.432]
[1729958410270,0.40729,2458.3,2458.2,0.432]
[1729958411775,0.40729,2458.3,2458.2,0.83931]
[1729958416382,4.183,2459.8,2458.2,4.5]
[1729958416583,0.40722,2458.8,2458.7,0.40722]
[1729958417389,0.40722,2458.8,2458.7,3.61502]
[1729958418492,0.40722,2458.8,2458.7,3.2078]
[1729958420188,0.40722,2458.8,2458.7,3.61502]
[1729958422195,0.40722,2458.8,2458.7,3.2078]
[1729958422693,0.40722,2458.7,2458.6,0.81673]
[1729958424697,0.40722,2458.7,2458.6,0.4095]
[1729958425297,0.40722,2458.7,2458.6,0.81674]
[1729958426294,0.40722,2458.7,2458.6,0.4095]
[1729958426497,0.40722,2458.7,2458.6,0.81674]
[1729958426697,0.40722,2458.7,2458.6,0.4095]
[1729958426893,0.40722,2458.7,2458.5,0.4234]
[1729958426894,0.40724,2458.6,2458.5,0.4234]
[1729958428395,0.40726,2458.5,2458.4,0.4261]
[1729958428598,0.84206,2458.5,2458.4,0.4261]
[1729958428795,0.40731,2458.2,2458.1,0.8732]
[1729958428995,0.40731,2458.2,2458.1,1.28052]
[1729958430101,0.40731,2458.2,2458.1,4.48832]
[1729958430504,0.40731,2458.2,2458.1,1.28052]
[1729958430705,0.40731,2458.2,2458.1,4.48832]
[1729958431106,0.40731,2458.2,2458.1,1.28052]
[1729958431506,0.40731,2458.2,2458.1,4.48832]
[1729958434212,0.40731,2458.2,2458.1,4.081]
[1729958434914,0.40731,2458.2,2458.1,0.8732]
[1729958435112,0.40731,2458.2,2458.1,4.081]
[1729958435510,0.40731,2458.2,2458.1,0.8732]
[1729958437808,0.40731,2458.2,2458.1,1.28052]
[1729958438018,0.884,2458.5,2458.1,0.8732]
[1729958438313,0.4073,2458.3,2458.2,0.82189]
[1729958439114,1.47545,2458.8,2458.2,0.4146]
[1729958439313,0.40725,2458.6,2458.5,0.40725]
[1729958439513,0.884,2458.9,2458.3,3.2078]
[1729958439812,0.40721,2458.8,2458.7,0.40721]
[1729958440718,0.40721,2458.8,2458.7,1.2498]
[1729958441618,0.40721,2458.8,2458.7,0.8352]
[1729958442111,4.47441,2458.8,2458.7,0.4206]
[1729958442315,0.40722,2458.7,2458.6,3.2078]
[1729958442914,0.40727,2458.4,2458.3,4.0875]
[1729958443619,0.40727,2458.4,2458.3,4.49479]
[1729958444319,1.3178,2459.1,2458.3,4.0875]
[1729958444519,0.40727,2458.5,2458.4,0.40727]
[1729958445620,0.40727,2458.5,2458.4,3.61507]
[1729958446020,0.4338,2459.1,2458.4,7.2758]
[1729958446214,0.40723,2458.7,2458.6,0.40723]
[1729958446726,1.01794,2459.0,2458.5,3.2078]
[1729958447021,0.40722,2458.7,2458.6,0.4256]
[1729958449430,0.40724,2458.6,2458.5,3.2078]
[1729958451627,1.01802,2458.8,2458.4,0.83167]
[1729958451821,0.40726,2458.5,2458.4,0.83167]
[1729958452121,0.40726,2458.5,2458.4,4.03947]
[1729958453228,0.40726,2458.5,2458.4,0.83167]
[1729958453430,0.40726,2458.5,2458.4,4.03947]
[1729958453730,0.40726,2458.5,2458.4,0.83167]
[1729958453923,0.40726,2458.5,2458.4,4.03947]
[1729958455125,1.01798,2458.9,2458.4,7.7002]
[1729958455431,0.40724,2458.7,2458.6,0.40723]
[1729958456932,0.40721,2458.8,2458.7,0.40721]
[1729958457129,0.40721,2458.8,2458.7,3.61501]
[1729958457729,0.4072,2458.9,2458.8,0.4072]
[1729958457927,0.40718,2459.0,2458.9,0.40718]
[1729958458233,0.40716,2459.1,2459.0,0.40717]
[1729958458533,0.40715,2459.2,2459.1,0.40715]
[1729958458722,0.40714,2459.3,2459.0,3.2078]
[1729958458927,0.40714,2459.3,2459.2,0.40714]
[1729958460233,0.40714,2459.2,2459.1,0.40714]
[1729958460434,0.40713,2459.3,2459.2,0.40714]
[1729958461335,1.0177,2459.6,2459.0,3.2078]
[1729958461532,0.40716,2459.1,2459.0,3.2078]
[1729958462137,0.40716,2459.1,2459.0,3.61497]
[1729958464740,1.01779,2459.4,2458.8,0.4307]
[1729958464942,0.40714,2459.2,2459.1,3.2078]
[1729958466653,0.40714,2459.2,2459.1,3.61496]
[1729958467036,0.4164,2459.6,2459.1,3.2078]
[1729958467339,0.4071,2459.5,2459.4,3.61489]
[1729958467644,1.90057,2459.9,2459.6,0.40707]
[1729958467645,0.40707,2459.7,2459.6,0.40707]
[1729958468340,0.40705,2459.8,2459.7,0.40705]
[1729958469343,0.40705,2459.8,2459.4,3.2078]
[1729958469647,0.40707,2459.7,2459.6,0.40707]
[1729958470347,0.40705,2459.8,2459.7,0.40705]
[1729958470648,1.01754,2460.0,2459.4,3.2078]
[1729958470945,1.45366,2460.2,2459.7,0.40705]
[1729958470946,0.40705,2459.8,2459.7,0.40705]
[1729958471146,0.40706,2459.7,2459.6,0.40706]
[1729958471343,1.0175,2460.1,2459.4,3.2078]
[1729958471550,1.45366,2460.2,2459.4,3.2078]
[1729958471551,0.40705,2459.8,2459.7,0.40705]
[1729958473849,0.40705,2459.8,2459.7,3.61485]
[1729958475050,0.4164,2460.2,2459.7,7.2734]
[1729958475252,1.9003,2460.6,2459.8,4.0646]
[1729958475549,1.01724,2460.7,2460.3,0.40695]
[1729958475756,1.01724,2460.7,2460.1,3.2078]
[1729958475757,0.40692,2460.5,2460.4,1.29014]
[1729958475948,0.40692,2460.5,2460.4,0.8832]
[1729958479457,0.40692,2460.5,2460.4,1.29014]
[1729958479960,0.40692,2460.5,2460.4,0.8832]
[1729958480154,0.0192,2461.1,2460.4,0.8832]
[1729958480355,1.4893,2461.1,2460.4,4.091]
[1729958480558,0.40687,2460.9,2460.8,0.40687]
[1729958480758,1.0171,2461.1,2460.4,3.6406]
[1729958480954,1.01711,2461.0,2460.4,3.6406]
[1729958481154,1.0171,2461.1,2460.4,3.6406]
[1729958481360,0.40689,2460.8,2460.7,0.40689]
[1729958481750,0.4069,2460.7,2460.6,0.40689]
[1729958482151,1.01715,2460.9,2460.4,3.6406]
[1729958482355,0.4069,2460.7,2460.6,0.4069]
[1729958482860,0.4069,2460.7,2460.6,4.4709]
[1729958483062,1.0171,2461.1,2460.4,3.6406]
[1729958483261,0.40692,2460.6,2460.5,0.40692]
[1729958483561,3.2078,2462.3,2460.5,4.946]
[1729958483759,1.01679,2461.8,2461.1,3.61462]
[1729958483963,0.40677,2461.5,2461.3,0.40678]
[1729958484163,1.46787,2461.9,2461.2,0.4169]
[1729958484360,0.40678,2461.4,2461.2,0.4169]
[1729958484763,0.40678,2461.4,2461.2,0.82371]
[1729958484960,0.40677,2461.5,2461.3,0.40678]
[1729958485161,0.40678,2461.4,2461.2,0.8237]
[1729958485362,0.0194,2461.8,2461.2,0.8237]
[1729958485363,0.40677,2461.5,2461.3,0.40679]
[1729958485565,0.40677,2461.5,2461.4,3.2078]
[1729958485765,0.40677,2461.5,2461.4,3.61458]
[1729958485961,0.0194,2461.8,2461.4,3.61458]
[1729958486266,0.40675,2461.6,2461.4,0.40678]
[1729958486467,0.0194,2461.8,2461.4,3.61458]
[1729958486666,0.40676,2461.6,2461.4,0.40678]
[1729958486865,0.40676,2461.5,2461.4,0.40678]
[1729958487163,0.40676,2461.5,2461.2,0.4169]
[1729958487563,0.40676,2461.5,2461.4,0.40678]
[1729958487763,0.40676,2461.5,2461.4,3.61458]
[1729958488062,1.46787,2461.9,2461.4,3.2078]
[1729958488264,0.40676,2461.5,2461.4,3.2078]
[1729958490169,0.40679,2461.3,2461.2,0.4169]
[1729958490669,0.40678,2461.4,2461.3,0.40679]
[1729958491971,1.0168,2461.8,2461.2,0.4169]
[1729958492171,0.40677,2461.5,2461.4,0.40677]
[1729958492672,0.40678,2461.4,2461.3,0.40678]
[1729958493371,0.40679,2461.3,2461.2,0.8237]
[1729958493674,0.40679,2461.3,2461.2,0.4169]
[1729958493873,0.40679,2461.3,2461.2,0.82371]
[1729958494375,0.40679,2461.3,2461.2,0.4169]
[1729958495275,0.4451,2461.5,2460.9,0.40686]
[1729958495468,0.40684,2461.0,2460.9,0.4269]
[1729958498775,0.0192,2461.2,2460.8,3.2078]
[1729958498976,1.01707,2461.1,2460.6,0.4221]
[1729958499182,0.40689,2460.7,2460.6,0.829]
[1729958499473,1.46235,2461.0,2460.4,0.4408]
[1729958499677,0.40692,2460.5,2460.4,0.4408]
[1729958500878,0.40694,2460.4,2460.3,0.4221]
[1729958501278,4.0648,2460.4,2460.0,0.4185]
[1729958501480,0.40699,2460.1,2460.0,0.4185]
[1729958502481,0.40702,2459.9,2459.8,0.4286]
[1729958508080,0.40702,2459.9,2459.8,0.83564]
[1729958508688,0.40702,2459.9,2459.8,0.4286]
[1729958509082,0.40706,2459.7,2459.6,3.6598]
[1729958509282,0.40706,2459.7,2459.6,3.2078]
[1729958511789,0.40707,2459.6,2459.5,0.4281]
[1729958512089,0.40707,2459.6,2459.5,3.6359]
[1729958514890,0.40707,2459.6,2459.5,0.4281]
[1729958515691,0.40707,2459.6,2459.5,3.6359]
[1729958515894,0.40707,2459.6,2459.5,0.4281]
[1729958516789,0.40707,2459.6,2459.5,3.6359]
[1729958517589,0.40707,2459.6,2459.5,7.7015]
[1729958518195,0.40707,2459.6,2459.5,3.6359]
[1729958518396,0.40707,2459.6,2459.5,7.7015]
[1729958519096,0.40707,2459.6,2459.5,4.4937]
[1729958519596,0.40707,2459.6,2459.5,3.6359]
[1729958521498,0.40707,2459.6,2459.5,0.4281]
[1729958521801,0.40707,2459.6,2459.5,3.6359]
[1729958523197,1.01749,2460.1,2459.5,7.7015]
[1729958523402,1.01744,2460.3,2459.8,3.2078]
[1729958523608,0.407,2460.1,2460.0,0.407]
[1729958523797,0.40698,2460.2,2460.1,0.40699]
[1729958524102,0.40701,2460.0,2459.9,1.25362]
[1729958524304,0.40698,2460.2,2460.1,0.40698]
[1729958524501,0.407,2460.1,2460.0,0.407]
[1729958525101,0.40699,2460.2,2460.1,0.40699]
[1729958525601,1.01721,2460.8,2460.2,0.40696]
[1729958525900,0.40694,2460.4,2460.3,0.8472]
[1729958527811,0.40693,2460.5,2460.4,0.40694]
[1729958528105,0.4069,2460.7,2460.6,0.4069]
[1729958528504,0.4069,2460.7,2460.6,4.4709]
[1729958528808,0.4069,2460.7,2460.6,4.47091]
[1729958529306,0.4069,2460.7,2460.6,4.064]
[1729958529612,1.48103,2461.3,2460.6,4.064]
[1729958529815,0.882,2461.2,2460.4,3.6237]
[1729958530016,0.40687,2460.9,2460.8,0.40687]
[1729958530214,1.01703,2461.3,2460.7,3.2078]
[1729958530517,1.01692,2461.5,2460.7,3.2078]
[1729958530518,0.40686,2460.9,2460.8,0.4159]
[1729958530910,0.40687,2460.8,2460.7,3.2078]
[1729958531709,0.40687,2460.8,2460.7,3.6237]
[1729958532623,0.40687,2460.8,2460.7,4.03059]
[1729958532816,0.40687,2460.8,2460.7,3.6237]
[1729958533924,1.89904,2461.2,2460.7,3.6237]
[1729958534324,0.40687,2460.8,2460.7,4.03058]
[1729958535329,0.40687,2460.8,2460.7,3.6237]
[1729958536923,0.40687,2460.8,2460.7,4.03059]
[1729958538029,0.882,2461.2,2460.7,7.6877]
[1729958538231,0.40687,2460.8,2460.7,4.03058]
[1729958538625,1.89904,2461.2,2460.7,3.6237]
[1729958538826,0.40687,2460.9,2460.8,0.40686]
[1729958541323,1.898,2461.3,2460.7,3.6237]
[1729958541529,0.40687,2460.8,2460.7,3.6237]
[1729958541730,0.40687,2460.8,2460.7,4.03059]
[1729958542840,0.40687,2460.8,2460.7,3.6237]
[1729958543336,0.40687,2460.8,2460.7,0.4159]
[1729958544034,0.40687,2460.8,2460.7,0.82279]
[1729958545732,0.40687,2460.8,2460.7,0.4159]
[1729958545933,0.40687,2460.8,2460.7,1.23639]
[1729958546135,0.40687,2460.8,2460.7,1.64439]
[1729958547437,0.40687,2460.9,2460.8,0.40686]
[1729958547839,1.01703,2461.2,2460.8,0.40686]
[1729958548027,0.40686,2460.9,2460.8,0.40686]
[1729958548339,1.01703,2461.2,2460.7,1.2375]
[1729958548538,0.40685,2461.0,2460.9,0.40685]
[1729958549339,1.01703,2461.2,2460.7,1.2375]
[1729958549536,0.40687,2460.9,2460.8,0.40686]
[1729958549839,0.40687,2460.8,2460.7,1.64439]
[1729958550137,0.40686,2461.0,2460.9,0.40685]
[1729958550338,0.40687,2460.8,2460.7,1.64437]
[1729958550528,0.40687,2460.9,2460.8,0.40687]
[1729958550934,1.3314,2461.4,2460.7,1.2375]
[1729958551237,0.40687,2460.9,2460.8,0.40686]
[1729958551430,0.40687,2460.8,2460.7,1.64439]
[1729958551637,0.40687,2460.8,2460.7,1.2375]
[1729958552637,0.40687,2460.8,2460.7,0.408]
[1729958553129,0.40687,2460.8,2460.7,1.2948]
[1729958557136,0.40687,2460.8,2460.7,5.76569]
[1729958557343,0.40687,2460.9,2460.8,0.40687]
[1729958558436,0.40685,2461.0,2460.9,0.40685]
[1729958559447,0.40687,2460.8,2460.7,1.2948]
[1729958562743,0.40687,2460.8,2460.7,0.8448]
[1729958571860,0.40689,2460.7,2460.6,3.2078]
[1729958572266,4.47089,2460.7,2460.6,3.2078]
[1729958572468,0.40694,2460.4,2460.3,3.2078]
[1729958574171,1.03598,2460.6,2460.3,3.2078]
[1729958574369,0.40694,2460.4,2460.3,3.0438]
[1729958575971,1.01724,2460.7,2460.1,1.70579]
[1729958576172,0.40697,2460.2,2460.1,1.70579]
[1729958576371,0.40697,2460.2,2460.1,4.91359]
[1729958576673,0.40697,2460.2,2460.1,8.97839]
[1729958578070,0.40697,2460.2,2460.1,5.77059]
[1729958578372,0.40697,2460.2,2460.1,8.5714]
[1729958578571,0.40697,2460.2,2460.1,4.5066]
[1729958579763,0.40697,2460.2,2460.1,4.91359]
[1729958580572,0.40697,2460.2,2460.1,4.5066]
[1729958580973,0.40697,2460.2,2460.1,4.91359]
[1729958581270,0.40697,2460.2,2460.1,4.5066]
[1729958581974,0.40697,2460.2,2460.1,1.2988]
[1729958582275,0.40697,2460.2,2460.1,4.5066]
[1729958582575,0.40697,2460.2,2460.1,1.2988]
[1729958583576,0.40697,2460.2,2460.1,1.70579]
[1729958583877,0.40697,2460.2,2460.1,1.2988]
[1729958584683,0.40697,2460.2,2460.1,1.70579]
[1729958584979,0.40697,2460.3,2460.2,0.40696]
[1729958585476,0.40697,2460.3,2460.2,4.47176]
[1729958586072,0.40697,2460.3,2460.2,4.0648]
[1729958586473,1.01733,2460.5,2460.1,1.70578]
[1729958586678,0.40697,2460.2,2460.1,1.70578]
[1729958587082,0.40697,2460.3,2460.2,0.40696]
[1729958587378,0.40694,2460.5,2460.4,0.40693]
[1729958587774,0.40694,2460.5,2460.4,4.47093]
[1729958588381,0.40691,2460.7,2460.6,0.4069]
[1729958588580,0.881,2460.9,2460.5,0.867]
[1729958588889,0.40691,2460.6,2460.5,1.27392]
[1729958589776,3.2078,2461.2,2460.5,4.931]
[1729958589977,0.40688,2460.9,2460.8,0.40687]
[1729958591089,0.40688,2460.8,2460.7,0.40688]
[1729958591589,0.40688,2460.8,2460.7,4.064]
[1729958591887,0.40691,2460.6,2460.5,0.40691]
[1729958592281,0.40692,2460.5,2460.4,0.83853]
[1729958592587,0.40692,2460.5,2460.4,0.4316]
[1729958592794,0.40697,2460.2,2460.1,0.40699]
[1729958593281,0.40697,2460.2,2460.1,4.47179]
[1729958594088,0.40697,2460.2,2460.1,0.40699]
[1729958594289,0.407,2460.1,2460.0,0.407]
[1729958594588,1.01733,2460.5,2459.8,0.4305]
[1729958594790,0.407,2460.1,2460.0,0.40699]
[1729958595087,0.40699,2460.2,2460.1,0.40698]
[1729958595287,1.42501,2460.6,2459.8,0.4305]
[1729958595481,0.40699,2460.2,2460.1,0.40698]
[1729958595881,0.40699,2460.2,2460.1,4.47178]
[1729958596687,0.40699,2460.2,2460.1,4.0648]
[1729958596987,0.40702,2460.0,2459.9,0.40702]
[1729958598277,1.01732,2460.5,2459.8,0.4245]
[1729958598587,0.407,2460.1,2460.0,0.407]
[1729958599281,1.01732,2460.5,2459.8,0.4245]
[1729958599481,0.40702,2460.0,2459.9,0.40701]
[1729958600888,0.40702,2460.0,2459.9,4.47181]
[1729958602190,0.40702,2460.0,2459.9,0.40701]
[1729958602387,0.40701,2460.0,2459.9,0.40701]
[1729958602690,0.40702,2460.0,2459.9,0.407]
[1729958607594,0.40699,2460.2,2460.1,0.40698]
[1729958608598,1.42767,2460.4,2459.9,0.8855]
[1729958608794,0.40701,2460.0,2459.9,1.29252]
[1729958612802,0.40701,2460.0,2459.9,0.4444]
[1729958612998,0.40704,2459.8,2459.7,3.61485]
[1729958613199,1.03635,2460.2,2459.7,3.6493]
[1729958613396,0.40704,2459.8,2459.7,4.05634]
[1729958614596,1.01745,2460.2,2459.7,3.6493]
[1729958614904,0.407,2460.1,2460.0,0.407]
[1729958615099,0.40702,2460.0,2459.9,0.40701]
[1729958615502,0.407,2460.1,2460.0,0.40699]
[1729958615701,0.0189,2460.5,2459.7,3.6493]
[1729958615999,0.40699,2460.2,2460.1,0.40698]
[1729958616199,1.03623,2460.5,2459.9,0.4254]
[1729958616401,0.407,2460.1,2460.0,0.40699]
[1729958617801,0.40698,2460.2,2460.1,0.40698]
[1729958619410,1.01733,2460.5,2460.0,0.4117]
[1729958619705,0.40699,2460.1,2460.0,0.81871]
[1729958620204,0.40699,2460.1,2460.0,0.4117]
[1729958621511,1.01741,2460.3,2459.9,0.4254]
[1729958621708,0.40701,2460.0,2459.9,0.4254]
[1729958622194,1.01748,2460.1,2459.7,3.2078]
[1729958622400,0.40704,2459.8,2459.7,3.61486]
[1729958623603,0.40704,2459.8,2459.7,3.2078]
[1729958625203,0.40706,2459.7,2459.6,12.93197933]
[1729958625710,0.40706,2459.7,2459.6,13.33904933]
[1729958626214,1.01748,2460.1,2459.6,12.93197933]
[1729958626412,0.40706,2459.7,2459.6,13.33903933]
[1729958626611,1.01748,2460.1,2459.6,12.93197933]
[1729958626911,0.40706,2459.7,2459.6,13.33903933]
[1729958627118,0.40706,2459.7,2459.6,0.40706]
[1729958627720,0.40705,2459.8,2459.7,0.40705]
[1729958628221,1.01748,2460.1,2459.5,4.064]
[1729958628520,0.40707,2459.7,2459.6,0.40706]
[1729958628721,0.40706,2459.8,2459.7,0.40705]
[1729958629823,0.40707,2459.7,2459.6,0.40706]
[1729958630211,0.40706,2459.8,2459.7,0.40705]
[1729958634223,0.40706,2459.8,2459.5,4.064]
[1729958634224,0.40707,2459.7,2459.6,0.40707]
[1729958636321,0.40707,2459.7,2459.6,0.82497]
[1729958639115,0.40707,2459.7,2459.6,0.4179]
[1729958639420,0.40707,2459.7,2459.6,0.82497]
[1729958640222,0.8334,2460.0,2459.6,0.4179]
[1729958640423,0.40706,2459.7,2459.6,0.82496]
[1729958640626,0.40705,2459.8,2459.7,0.40704]
[1729958641824,1.01748,2460.1,2459.6,0.4179]
[1729958642026,0.40706,2459.7,2459.6,0.82497]
[1729958642721,0.40706,2459.7,2459.6,0.4179]
[1729958642919,1.44258,2459.9,2459.5,3.6239]
[1729958643119,0.40707,2459.6,2459.5,3.6239]